[Event "January 2 Late 2024"]
[Site "https://www.chess.com"]
[Date "2024.01.02"]
[Round "10"]
[White "Dias, Joao Batista"]
[Black "Urbina Perez, Juan Antonio"]
[Result "0-1"]
[Board "111"]
[TimeControl "180+1"]
[WhiteFideId "2108240"]
[BlackFideId "2217368"]
[WhiteElo "2037"]
[BlackElo "2421"]
[WhiteTeam "BRA"]
[BlackTeam "ESP"]
[WhiteClock "0:00:01"]
[BlackClock "0:00:21"]

1. e4 {[%clk 0:03:00]}  e5 {[%clk 0:02:57]} 2. Nf3 {[%clk 0:03:00]}  Nc6 {[%clk 0:02:57]} 3. Bc4 {[%clk 0:03:00]}  Be7 {[%clk 0:02:55]} 4. h3 {[%clk 0:03:00]}  Nf6 {[%clk 0:02:55]} 5. d3 {[%clk 0:02:57]}  O-O {[%clk 0:02:56]} 6. O-O {[%clk 0:02:56]}  d5 {[%clk 0:02:53]} 7. exd5 {[%clk 0:02:56]}  Nxd5 {[%clk 0:02:54]} 8. Nc3 {[%clk 0:02:56]}  Be6 {[%clk 0:02:47]} 9. Bd2 {[%clk 0:02:51]}  Nxc3 {[%clk 0:02:36]} 10. Bxc3 {[%clk 0:02:48]}  Bxc4 {[%clk 0:02:36]} 11. dxc4 {[%clk 0:02:48]}  f6 {[%clk 0:02:35]} 12. Qd5+ {[%clk 0:02:42]}  Qxd5 {[%clk 0:02:27]} 13. cxd5 {[%clk 0:02:41]}  Nb8 {[%clk 0:02:27]} 14. Rfd1 {[%clk 0:02:25]}  Bd6 {[%clk 0:02:27]} 15. Bd2 {[%clk 0:02:22]}  Nd7 {[%clk 0:02:27]} 16. c4 {[%clk 0:02:22]}  b6 {[%clk 0:02:27]} 17. a3 {[%clk 0:02:22]}  a5 {[%clk 0:02:27]} 18. b4 {[%clk 0:02:20]}  axb4 {[%clk 0:02:27]} 19. axb4 {[%clk 0:02:20]}  Kf7 {[%clk 0:02:28]} 20. Kf1 {[%clk 0:02:19]}  Ke7 {[%clk 0:02:20]} 21. Ke2 {[%clk 0:02:19]}  g6 {[%clk 0:02:20]} 22. Kd3 {[%clk 0:02:16]}  f5 {[%clk 0:02:12]} 23. Kc2 {[%clk 0:02:02]}  e4 {[%clk 0:02:09]} 24. Nd4 {[%clk 0:01:58]}  Ne5 {[%clk 0:02:08]} 25. Kb3 {[%clk 0:01:52]}  Nd3 {[%clk 0:02:05]} 26. Nc6+ {[%clk 0:01:47]}  Kd7 {[%clk 0:02:01]} 27. Bh6 {[%clk 0:01:38]}  Rfe8 {[%clk 0:01:57]} 28. Be3 {[%clk 0:01:13]}  Ne5 {[%clk 0:01:28]} 29. Rxa8 {[%clk 0:01:12]}  Rxa8 {[%clk 0:01:24]} 30. Nd4 {[%clk 0:01:01]}  Nd3 {[%clk 0:01:20]} 31. Nc6 {[%clk 0:00:59]}  Re8 {[%clk 0:01:14]} 32. g3 {[%clk 0:00:55]}  f4 {[%clk 0:01:08]} 33. gxf4 {[%clk 0:00:54]}  Bxf4 {[%clk 0:01:09]} 34. Bxf4 {[%clk 0:00:42]}  Nxf4 {[%clk 0:01:10]} 35. h4 {[%clk 0:00:41]}  Nd3 {[%clk 0:01:01]} 36. Rd2 {[%clk 0:00:38]}  Ne1 {[%clk 0:00:58]} 37. c5 {[%clk 0:00:31]}  bxc5 {[%clk 0:00:57]} 38. bxc5 {[%clk 0:00:31]}  Nf3 {[%clk 0:00:57]} 39. Ra2 {[%clk 0:00:24]}  Nxh4 {[%clk 0:00:54]} 40. Nd4 {[%clk 0:00:24]}  Rf8 {[%clk 0:00:52]} 41. Kc4 {[%clk 0:00:20]}  Nf5 {[%clk 0:00:41]} 42. c6+ {[%clk 0:00:20]}  Kd6 {[%clk 0:00:36]} 43. Nb5+ {[%clk 0:00:19]}  Ke5 {[%clk 0:00:36]} 44. Nxc7 {[%clk 0:00:19]}  Nd6+ {[%clk 0:00:33]} 45. Kc5 {[%clk 0:00:18]}  Rb8 {[%clk 0:00:24]} 46. Ra5 {[%clk 0:00:15]}  Rb1 {[%clk 0:00:21]} 47. Ne6 {[%clk 0:00:07]}  Rc1+ {[%clk 0:00:21]} 48. Kb6 {[%clk 0:00:08]}  Nc4+ {[%clk 0:00:21]} 49. Ka6 {[%clk 0:00:07]}  Nxa5 {[%clk 0:00:22]} 50. Kxa5 {[%clk 0:00:07]}  Kxd5 {[%clk 0:00:23]} 51. c7 {[%clk 0:00:03]}  Kxe6 {[%clk 0:00:22]} 52. Kb6 {[%clk 0:00:03]}  Rxc7 {[%clk 0:00:21]} 53. Kxc7 {[%clk 0:00:03]}  e3 {[%clk 0:00:21]} 54. Kc6 {[%clk 0:00:01]}  exf2 {[%clk 0:00:21]} 0-1

[Event "January 2 Late 2024"]
[Site "https://www.chess.com"]
[Date "2024.01.02"]
[Round "10"]
[White "Vlassov, Nikolai"]
[Black "Bazzano, Sebastian"]
[Result "1-0"]
[Board "112"]
[TimeControl "180+1"]
[WhiteFideId "4103360"]
[BlackFideId "104566"]
[WhiteElo "2609"]
[BlackElo "2289"]
[WhiteTeam "FID"]
[BlackTeam "ARG"]
[WhiteClock "0:00:31"]
[BlackClock "0:00:15"]

1. e4 {[%clk 0:03:00]}  e6 {[%clk 0:02:59]} 2. d4 {[%clk 0:03:00]}  d5 {[%clk 0:03:00]} 3. e5 {[%clk 0:03:01]}  b6 {[%clk 0:02:57]} 4. c3 {[%clk 0:02:58]}  Qd7 {[%clk 0:02:58]} 5. Nh3 {[%clk 0:02:51]}  Ba6 {[%clk 0:02:57]} 6. Nf4 {[%clk 0:02:51]}  Bxf1 {[%clk 0:02:56]} 7. Kxf1 {[%clk 0:02:51]}  c5 {[%clk 0:02:54]} 8. h4 {[%clk 0:02:51]}  Ne7 {[%clk 0:02:46]} 9. g4 {[%clk 0:02:48]}  Nbc6 {[%clk 0:02:37]} 10. Be3 {[%clk 0:02:47]}  cxd4 {[%clk 0:02:32]} 11. cxd4 {[%clk 0:02:46]}  Na5 {[%clk 0:02:30]} 12. b3 {[%clk 0:02:43]}  Rc8 {[%clk 0:02:27]} 13. Rh3 {[%clk 0:02:38]}  Nec6 {[%clk 0:02:11]} 14. Nh5 {[%clk 0:02:33]}  Nb4 {[%clk 0:02:04]} 15. Na3 {[%clk 0:02:22]}  Na6 {[%clk 0:01:45]} 16. Nc2 {[%clk 0:02:18]}  Nb4 {[%clk 0:01:44]} 17. Nxb4 {[%clk 0:02:15]}  Bxb4 {[%clk 0:01:44]} 18. Nxg7+ {[%clk 0:02:15]}  Ke7 {[%clk 0:01:41]} 19. Bg5+ {[%clk 0:02:14]}  Kf8 {[%clk 0:01:40]} 20. Bh6 {[%clk 0:02:14]}  Ke7 {[%clk 0:01:35]} 21. Bg5+ {[%clk 0:02:05]}  Kf8 {[%clk 0:01:34]} 22. Nh5 {[%clk 0:02:05]}  h6 {[%clk 0:01:29]} 23. Bf6 {[%clk 0:02:03]}  Rg8 {[%clk 0:01:29]} 24. Rg3 {[%clk 0:01:53]}  Qc6 {[%clk 0:01:07]} 25. Qf3 {[%clk 0:01:39]}  Qc2 {[%clk 0:00:43]} 26. Qf4 {[%clk 0:01:36]}  Rg6 {[%clk 0:00:29]} 27. Kg2 {[%clk 0:01:14]}  Qe4+ {[%clk 0:00:29]} 28. Qxe4 {[%clk 0:01:10]}  dxe4 {[%clk 0:00:30]} 29. Nf4 {[%clk 0:01:07]}  Rg8 {[%clk 0:00:28]} 30. Rd1 {[%clk 0:01:01]}  Rc2 {[%clk 0:00:24]} 31. d5 {[%clk 0:01:01]}  Bc5 {[%clk 0:00:17]} 32. dxe6 {[%clk 0:00:47]}  Rxf2+ {[%clk 0:00:15]} 33. Kh3 {[%clk 0:00:48]}  fxe6 {[%clk 0:00:15]} 34. Nxe6+ {[%clk 0:00:47]}  Kf7 {[%clk 0:00:16]} 35. Nxc5 {[%clk 0:00:47]}  bxc5 {[%clk 0:00:16]} 36. Rd7+ {[%clk 0:00:47]}  Ke6 {[%clk 0:00:15]} 37. Rxa7 {[%clk 0:00:37]}  Nc6 {[%clk 0:00:15]} 38. Ra6 {[%clk 0:00:37]}  Kd5 {[%clk 0:00:15]} 39. g5 {[%clk 0:00:34]}  Nd4 {[%clk 0:00:15]} 40. Rd6# {[%clk 0:00:31]} 1-0

[Event "January 2 Late 2024"]
[Site "https://www.chess.com"]
[Date "2024.01.02"]
[Round "10"]
[White "Arlo2024"]
[Black "Chocenka, Dmitrijus"]
[Result "0-1"]
[Board "115"]
[TimeControl "180+1"]
[BlackFideId "12802336"]
[WhiteElo "2255"]
[BlackElo "2446"]
[BlackTeam "LTU"]
[WhiteClock "0:00:00"]
[BlackClock "0:01:47"]

1. e4 {[%clk 0:01:05]}  c5 {[%clk 0:02:57]} 2. Nc3 {[%clk 0:01:03]}  Nc6 {[%clk 0:02:56]} 3. g3 {[%clk 0:01:04]}  g6 {[%clk 0:02:54]} 4. Bg2 {[%clk 0:01:04]}  Bg7 {[%clk 0:02:54]} 5. d3 {[%clk 0:01:05]}  e5 {[%clk 0:02:54]} 6. f4 {[%clk 0:01:04]}  d6 {[%clk 0:02:53]} 7. Nf3 {[%clk 0:01:05]}  Nge7 {[%clk 0:02:53]} 8. O-O {[%clk 0:01:03]}  O-O {[%clk 0:02:53]} 9. Be3 {[%clk 0:01:03]}  f5 {[%clk 0:02:53]} 10. fxe5 {[%clk 0:01:02]}  Nxe5 {[%clk 0:02:51]} 11. Nxe5 {[%clk 0:01:02]}  Bxe5 {[%clk 0:02:51]} 12. Qd2 {[%clk 0:01:03]}  fxe4 {[%clk 0:02:47]} 13. dxe4 {[%clk 0:01:01]}  Be6 {[%clk 0:02:46]} 14. Rxf8+ {[%clk 0:00:58]}  Qxf8 {[%clk 0:02:45]} 15. Rf1 {[%clk 0:00:58]}  Qe8 {[%clk 0:02:43]} 16. Bh6 {[%clk 0:00:59]}  Bf7 {[%clk 0:02:25]} 17. Bh3 {[%clk 0:00:41]}  b5 {[%clk 0:02:05]} 18. Nd5 {[%clk 0:00:41]}  Nxd5 {[%clk 0:02:05]} 19. exd5 {[%clk 0:00:41]}  Bd4+ {[%clk 0:02:04]} 20. Kh1 {[%clk 0:00:39]}  Bxd5+ {[%clk 0:02:04]} 21. Bg2 {[%clk 0:00:37]}  Qe4 {[%clk 0:01:51]} 22. Rf3 {[%clk 0:00:19]}  Qxf3 {[%clk 0:01:47]} 23. Bxf3 {[%clk 0:00:00]}  Bxf3+ {[%clk 0:01:47]} 0-1

[Event "January 2 Late 2024"]
[Site "https://www.chess.com"]
[Date "2024.01.02"]
[Round "10"]
[White "Bouget, Alexandre"]
[Black "Jing, Andrew"]
[Result "1-0"]
[Board "117"]
[TimeControl "180+1"]
[WhiteFideId "681318"]
[BlackFideId "30984076"]
[WhiteElo "2400"]
[BlackElo "2172"]
[WhiteTeam "FRA"]
[BlackTeam "USA"]
[WhiteClock "0:01:21"]
[BlackClock "0:02:03"]

1. d4 {[%clk 0:03:00]}  Nf6 {[%clk 0:02:59]} 2. Bg5 {[%clk 0:02:59]}  d5 {[%clk 0:02:56]} 3. Bxf6 {[%clk 0:02:57]}  exf6 {[%clk 0:02:57]} 4. e3 {[%clk 0:02:56]}  f5 {[%clk 0:02:57]} 5. c4 {[%clk 0:02:49]}  dxc4 {[%clk 0:02:54]} 6. Bxc4 {[%clk 0:02:48]}  c6 {[%clk 0:02:53]} 7. a4 {[%clk 0:02:45]}  Nd7 {[%clk 0:02:53]} 8. Nf3 {[%clk 0:02:42]}  Nf6 {[%clk 0:02:52]} 9. Nc3 {[%clk 0:02:35]}  Bd6 {[%clk 0:02:52]} 10. O-O {[%clk 0:02:27]}  O-O {[%clk 0:02:51]} 11. Ne5 {[%clk 0:02:25]}  Qe7 {[%clk 0:02:41]} 12. f4 {[%clk 0:02:17]}  Be6 {[%clk 0:02:39]} 13. Qb3 {[%clk 0:02:15]}  Bxc4 {[%clk 0:02:30]} 14. Nxc4 {[%clk 0:02:16]}  Rab8 {[%clk 0:02:28]} 15. a5 {[%clk 0:02:13]}  b5 {[%clk 0:02:26]} 16. axb6 {[%clk 0:02:13]}  axb6 {[%clk 0:02:27]} 17. Ra6 {[%clk 0:02:07]}  b5 {[%clk 0:02:26]} 18. Ne5 {[%clk 0:02:06]}  Bxe5 {[%clk 0:02:26]} 19. fxe5 {[%clk 0:02:05]}  Ne4 {[%clk 0:02:26]} 20. Nxe4 {[%clk 0:01:58]}  fxe4 {[%clk 0:02:27]} 21. Rxc6 {[%clk 0:01:58]}  b4 {[%clk 0:02:25]} 22. Qd5 {[%clk 0:01:52]}  b3 {[%clk 0:02:23]} 23. Qxe4 {[%clk 0:01:51]}  Qb4 {[%clk 0:02:22]} 24. h4 {[%clk 0:01:44]}  Qd2 {[%clk 0:02:21]} 25. Rf2 {[%clk 0:01:45]}  Qe1+ {[%clk 0:02:21]} 26. Rf1 {[%clk 0:01:42]}  Qd2 {[%clk 0:02:21]} 27. h5 {[%clk 0:01:33]}  Qxb2 {[%clk 0:02:20]} 28. h6 {[%clk 0:01:28]}  Rfc8 {[%clk 0:02:03]} 29. Qg4 {[%clk 0:01:21]} 1-0

[Event "January 2 Late 2024"]
[Site "https://www.chess.com"]
[Date "2024.01.02"]
[Round "10"]
[White "Ardila, Oscar Humberto"]
[Black "Pepino, Enrico"]
[Result "0-1"]
[Board "119"]
[TimeControl "180+1"]
[WhiteFideId "4404742"]
[BlackFideId "810908"]
[WhiteElo "2330"]
[BlackElo "2077"]
[WhiteTeam "COL"]
[BlackTeam "ITA"]
[WhiteClock "0:00:08"]
[BlackClock "0:00:10"]

1. d4 {[%clk 0:03:00]}  Nf6 {[%clk 0:02:51]} 2. c3 {[%clk 0:03:00]}  g6 {[%clk 0:02:50]} 3. e3 {[%clk 0:02:57]}  Bg7 {[%clk 0:02:50]} 4. Bd3 {[%clk 0:02:57]}  O-O {[%clk 0:02:50]} 5. h4 {[%clk 0:02:57]}  d6 {[%clk 0:02:50]} 6. h5 {[%clk 0:02:58]}  e5 {[%clk 0:02:50]} 7. hxg6 {[%clk 0:02:57]}  hxg6 {[%clk 0:02:51]} 8. Nd2 {[%clk 0:02:54]}  Qe7 {[%clk 0:02:51]} 9. Qc2 {[%clk 0:02:51]}  Re8 {[%clk 0:02:47]} 10. Bxg6 {[%clk 0:02:50]}  fxg6 {[%clk 0:02:47]} 11. Qxg6 {[%clk 0:02:50]}  Qf7 {[%clk 0:02:47]} 12. Qg5 {[%clk 0:02:48]}  exd4 {[%clk 0:02:44]} 13. cxd4 {[%clk 0:02:47]}  Nc6 {[%clk 0:02:43]} 14. Ngf3 {[%clk 0:02:46]}  Bg4 {[%clk 0:02:42]} 15. Rh4 {[%clk 0:02:38]}  Bxf3 {[%clk 0:02:41]} 16. Nxf3 {[%clk 0:02:38]}  Re4 {[%clk 0:02:33]} 17. Rxe4 {[%clk 0:02:17]}  Nxe4 {[%clk 0:02:33]} 18. Qg4 {[%clk 0:02:17]}  Re8 {[%clk 0:02:29]} 19. Bd2 {[%clk 0:02:12]}  Nxd2 {[%clk 0:02:24]} 20. Nxd2 {[%clk 0:02:11]}  Nxd4 {[%clk 0:02:20]} 21. O-O-O {[%clk 0:02:08]}  Qf5 {[%clk 0:02:05]} 22. Qxf5 {[%clk 0:02:03]}  Nxf5 {[%clk 0:02:05]} 23. Nf3 {[%clk 0:01:56]}  Rd8 {[%clk 0:01:52]} 24. Rd5 {[%clk 0:01:56]}  Ne7 {[%clk 0:01:52]} 25. Rb5 {[%clk 0:01:53]}  b6 {[%clk 0:01:51]} 26. Ng5 {[%clk 0:01:49]}  c6 {[%clk 0:01:46]} 27. Rb4 {[%clk 0:01:44]}  d5 {[%clk 0:01:43]} 28. Rg4 {[%clk 0:01:36]}  Rd6 {[%clk 0:01:37]} 29. Nf3 {[%clk 0:01:32]}  Rg6 {[%clk 0:01:34]} 30. Rf4 {[%clk 0:01:26]}  Rxg2 {[%clk 0:01:32]} 31. Nh4 {[%clk 0:01:26]}  Rg1+ {[%clk 0:01:28]} 32. Kc2 {[%clk 0:01:26]}  c5 {[%clk 0:01:23]} 33. Nf3 {[%clk 0:01:24]}  Rf1 {[%clk 0:01:18]} 34. Nd2 {[%clk 0:01:23]}  Rh1 {[%clk 0:01:15]} 35. a4 {[%clk 0:01:20]}  Bh6 {[%clk 0:01:05]} 36. Rf6 {[%clk 0:01:19]}  Kg7 {[%clk 0:01:02]} 37. Re6 {[%clk 0:01:18]}  Kf7 {[%clk 0:01:02]} 38. Rd6 {[%clk 0:01:05]}  Rh2 {[%clk 0:00:56]} 39. f4 {[%clk 0:01:05]}  d4 {[%clk 0:00:53]} 40. Kd3 {[%clk 0:01:00]}  dxe3 {[%clk 0:00:49]} 41. Nf3 {[%clk 0:01:00]}  Bxf4 {[%clk 0:00:36]} 42. Rd7 {[%clk 0:00:54]}  e2 {[%clk 0:00:28]} 43. Ke4 {[%clk 0:00:52]}  Rf2 {[%clk 0:00:22]} 44. Ne1 {[%clk 0:00:33]}  Rf1 {[%clk 0:00:19]} 45. Nd3 {[%clk 0:00:32]}  e1=Q+ {[%clk 0:00:18]} 46. Nxe1 {[%clk 0:00:33]}  Rxe1+ {[%clk 0:00:18]} 47. Kxf4 {[%clk 0:00:33]}  Re2 {[%clk 0:00:18]} 48. b3 {[%clk 0:00:32]}  Ke6 {[%clk 0:00:17]} 49. Rxa7 {[%clk 0:00:32]}  Rb2 {[%clk 0:00:17]} 50. a5 {[%clk 0:00:32]}  Rxb3 {[%clk 0:00:17]} 51. a6 {[%clk 0:00:33]}  Ra3 {[%clk 0:00:16]} 52. Ra8 {[%clk 0:00:33]}  Nc6 {[%clk 0:00:15]} 53. Ke4 {[%clk 0:00:33]}  Ra4+ {[%clk 0:00:13]} 54. Kd3 {[%clk 0:00:33]}  Kd5 {[%clk 0:00:14]} 55. Kc3 {[%clk 0:00:32]}  b5 {[%clk 0:00:12]} 56. Kb3 {[%clk 0:00:30]}  c4+ {[%clk 0:00:11]} 57. Kc3 {[%clk 0:00:30]}  Kc5 {[%clk 0:00:12]} 58. Kb2 {[%clk 0:00:29]}  b4 {[%clk 0:00:11]} 59. Kc2 {[%clk 0:00:29]}  Ra2+ {[%clk 0:00:11]} 60. Kb1 {[%clk 0:00:30]}  b3 {[%clk 0:00:11]} 61. a7 {[%clk 0:00:27]}  Rxa7 {[%clk 0:00:11]} 62. Rh8 {[%clk 0:00:27]}  Kb4 {[%clk 0:00:11]} 63. Rh6 {[%clk 0:00:26]}  Nd4 {[%clk 0:00:10]} 64. Kc1 {[%clk 0:00:21]}  Nb5 {[%clk 0:00:10]} 65. Kd2 {[%clk 0:00:20]}  Ra2+ {[%clk 0:00:10]} 66. Ke3 {[%clk 0:00:21]}  b2 {[%clk 0:00:11]} 67. Rh1 {[%clk 0:00:21]}  Ra1 {[%clk 0:00:10]} 68. Rh8 {[%clk 0:00:22]}  b1=Q {[%clk 0:00:10]} 69. Rb8 {[%clk 0:00:23]}  Qd3+ {[%clk 0:00:10]} 70. Kf4 {[%clk 0:00:23]}  Rf1+ {[%clk 0:00:10]} 71. Ke5 {[%clk 0:00:24]}  Rf5+ {[%clk 0:00:10]} 72. Ke6 {[%clk 0:00:24]}  Qd5+ {[%clk 0:00:10]} 73. Ke7 {[%clk 0:00:08]}  Rf7+ {[%clk 0:00:10]} 0-1

[Event "January 2 Late 2024"]
[Site "https://www.chess.com"]
[Date "2024.01.02"]
[Round "10"]
[White "Dmitriev, Sergey"]
[Black "Gonzalez Zharikov, Andrey"]
[Result "0-1"]
[Board "120"]
[TimeControl "180+1"]
[WhiteFideId "14101785"]
[BlackFideId "5145287"]
[WhiteElo "2040"]
[BlackElo "2304"]
[WhiteTeam "UKR"]
[BlackTeam "MEX"]
[WhiteClock "0:00:11"]
[BlackClock "0:01:04"]

1. e4 {[%clk 0:03:00]}  c6 {[%clk 0:02:59]} 2. Nf3 {[%clk 0:02:59]}  d5 {[%clk 0:02:51]} 3. exd5 {[%clk 0:02:59]}  cxd5 {[%clk 0:02:51]} 4. d4 {[%clk 0:03:00]}  Nf6 {[%clk 0:02:50]} 5. Bd3 {[%clk 0:02:59]}  Nc6 {[%clk 0:02:49]} 6. c3 {[%clk 0:02:58]}  Bg4 {[%clk 0:02:49]} 7. Bg5 {[%clk 0:02:57]}  e6 {[%clk 0:02:48]} 8. Nbd2 {[%clk 0:02:56]}  Be7 {[%clk 0:02:47]} 9. Qb3 {[%clk 0:02:55]}  Qc7 {[%clk 0:02:46]} 10. O-O {[%clk 0:02:45]}  O-O {[%clk 0:02:45]} 11. Qc2 {[%clk 0:02:38]}  h6 {[%clk 0:02:28]} 12. Bh4 {[%clk 0:02:34]}  Rac8 {[%clk 0:02:27]} 13. Qb3 {[%clk 0:02:23]}  Na5 {[%clk 0:02:17]} 14. Qa4 {[%clk 0:02:15]}  Bxf3 {[%clk 0:02:14]} 15. Nxf3 {[%clk 0:02:15]}  Nc4 {[%clk 0:02:12]} 16. Bxc4 {[%clk 0:02:09]}  dxc4 {[%clk 0:02:12]} 17. Bg3 {[%clk 0:02:06]}  Qb6 {[%clk 0:02:12]} 18. Qc2 {[%clk 0:02:04]}  Nd5 {[%clk 0:02:10]} 19. Ne5 {[%clk 0:02:00]}  Rfd8 {[%clk 0:02:08]} 20. f4 {[%clk 0:01:51]}  Ne3 {[%clk 0:02:05]} 21. Qf2 {[%clk 0:01:46]}  Nxf1 {[%clk 0:02:05]} 22. Rxf1 {[%clk 0:01:45]}  g6 {[%clk 0:01:55]} 23. Qf3 {[%clk 0:01:35]}  Rd5 {[%clk 0:01:54]} 24. Qg4 {[%clk 0:01:32]}  Kg7 {[%clk 0:01:44]} 25. h4 {[%clk 0:01:26]}  h5 {[%clk 0:01:43]} 26. Qf3 {[%clk 0:01:26]}  Rb5 {[%clk 0:01:37]} 27. Rf2 {[%clk 0:01:25]}  Rxb2 {[%clk 0:01:37]} 28. Rxb2 {[%clk 0:01:24]}  Qxb2 {[%clk 0:01:37]} 29. Bf2 {[%clk 0:01:06]}  Rc7 {[%clk 0:01:33]} 30. g4 {[%clk 0:01:06]}  hxg4 {[%clk 0:01:33]} 31. Qxg4 {[%clk 0:01:06]}  Qb1+ {[%clk 0:01:31]} 32. Kg2 {[%clk 0:01:05]}  Qe4+ {[%clk 0:01:31]} 33. Kg3 {[%clk 0:00:59]}  Qf5 {[%clk 0:01:30]} 34. Qf3 {[%clk 0:00:59]}  b5 {[%clk 0:01:29]} 35. Ng4 {[%clk 0:00:53]}  Bd6 {[%clk 0:01:29]} 36. Ne3 {[%clk 0:00:52]}  Qd3 {[%clk 0:01:26]} 37. h5 {[%clk 0:00:48]}  b4 {[%clk 0:01:14]} 38. hxg6 {[%clk 0:00:46]}  fxg6 {[%clk 0:01:14]} 39. Qg4 {[%clk 0:00:42]}  Qe4 {[%clk 0:01:12]} 40. cxb4 {[%clk 0:00:27]}  c3 {[%clk 0:01:12]} 41. Qd1 {[%clk 0:00:16]}  c2 {[%clk 0:01:09]} 42. Qc1 {[%clk 0:00:16]}  Qxf4+ {[%clk 0:01:09]} 43. Kg2 {[%clk 0:00:16]}  Qe4+ {[%clk 0:01:04]} 44. Kf1 {[%clk 0:00:14]}  Qd3+ {[%clk 0:01:04]} 45. Ke1 {[%clk 0:00:11]}  Bxb4+ {[%clk 0:01:04]} 0-1

[Event "January 2 Late 2024"]
[Site "https://www.chess.com"]
[Date "2024.01.02"]
[Round "10"]
[White "Osmonbekov, Talaibek"]
[Black "Kotlyar, Kirill"]
[Result "0-1"]
[Board "121"]
[TimeControl "180+1"]
[WhiteFideId "2017253"]
[BlackFideId "24145599"]
[WhiteElo "2304"]
[BlackElo "2506"]
[WhiteTeam "USA"]
[BlackTeam "RUS"]
[WhiteClock "0:00:00"]
[BlackClock "0:00:33"]

1. d4 {[%clk 0:03:00]}  Nf6 {[%clk 0:02:59]} 2. Nc3 {[%clk 0:03:01]}  d5 {[%clk 0:02:59]} 3. Bf4 {[%clk 0:03:01]}  c6 {[%clk 0:02:52]} 4. e3 {[%clk 0:03:01]}  Bf5 {[%clk 0:02:46]} 5. f3 {[%clk 0:03:01]}  e6 {[%clk 0:02:46]} 6. g4 {[%clk 0:03:01]}  Bg6 {[%clk 0:02:46]} 7. h4 {[%clk 0:03:02]}  h6 {[%clk 0:02:45]} 8. h5 {[%clk 0:03:01]}  Bh7 {[%clk 0:02:45]} 9. Bd3 {[%clk 0:03:02]}  Bd6 {[%clk 0:02:44]} 10. Nge2 {[%clk 0:02:59]}  Qc7 {[%clk 0:02:27]} 11. Bxh7 {[%clk 0:02:56]}  Nxh7 {[%clk 0:02:26]} 12. Qd3 {[%clk 0:02:56]}  Nd7 {[%clk 0:02:23]} 13. O-O-O {[%clk 0:02:48]}  O-O-O {[%clk 0:02:23]} 14. Bxd6 {[%clk 0:02:46]}  Qxd6 {[%clk 0:02:23]} 15. e4 {[%clk 0:02:47]}  Nb6 {[%clk 0:02:13]} 16. b3 {[%clk 0:02:27]}  Rhe8 {[%clk 0:02:03]} 17. exd5 {[%clk 0:02:06]}  Nf6 {[%clk 0:01:33]} 18. dxc6 {[%clk 0:02:00]}  Qxc6 {[%clk 0:01:34]} 19. Kb2 {[%clk 0:01:44]}  Kb8 {[%clk 0:01:33]} 20. Qb5 {[%clk 0:01:36]}  Qxf3 {[%clk 0:01:29]} 21. Qe5+ {[%clk 0:01:31]}  Ka8 {[%clk 0:01:29]} 22. Nb5 {[%clk 0:01:25]}  Rd7 {[%clk 0:01:24]} 23. Rdf1 {[%clk 0:00:40]}  Qe4 {[%clk 0:01:06]} 24. Nec3 {[%clk 0:00:28]}  Qxe5 {[%clk 0:00:59]} 25. dxe5 {[%clk 0:00:29]}  Nxg4 {[%clk 0:01:00]} 26. Rhg1 {[%clk 0:00:15]}  f5 {[%clk 0:00:55]} 27. exf6 {[%clk 0:00:14]}  Nxf6 {[%clk 0:00:56]} 28. Rg6 {[%clk 0:00:12]}  a6 {[%clk 0:00:54]} 29. Na3 {[%clk 0:00:12]}  Nxh5 {[%clk 0:00:51]} 30. Nab1 {[%clk 0:00:11]}  Nd5 {[%clk 0:00:48]} 31. Ne4 {[%clk 0:00:09]}  Ndf6 {[%clk 0:00:45]} 32. Nc5 {[%clk 0:00:06]}  Rc7 {[%clk 0:00:45]} 33. b4 {[%clk 0:00:06]}  Ka7 {[%clk 0:00:42]} 34. Nc3 {[%clk 0:00:05]}  b6 {[%clk 0:00:42]} 35. N5e4 {[%clk 0:00:04]}  Ree7 {[%clk 0:00:37]} 36. a4 {[%clk 0:00:01]}  Nxe4 {[%clk 0:00:32]} 37. Nxe4 {[%clk 0:00:00]}  Rc4 {[%clk 0:00:33]} 0-1

[Event "January 2 Late 2024"]
[Site "https://www.chess.com"]
[Date "2024.01.02"]
[Round "10"]
[White "Eggleston, Thomas A"]
[Black "Gavrilov, Maxim"]
[Result "1-0"]
[Board "122"]
[TimeControl "180+1"]
[WhiteFideId "412139"]
[BlackFideId "24271454"]
[WhiteElo "2278"]
[BlackElo "2462"]
[WhiteTeam "ENG"]
[BlackTeam "RUS"]
[WhiteClock "0:00:13"]
[BlackClock "0:01:25"]

1. e4 {[%clk 0:02:59]}  c5 {[%clk 0:02:59]} 2. Nf3 {[%clk 0:02:59]}  Nc6 {[%clk 0:02:59]} 3. Bb5 {[%clk 0:02:57]}  g6 {[%clk 0:02:59]} 4. Bxc6 {[%clk 0:02:56]}  dxc6 {[%clk 0:02:58]} 5. d3 {[%clk 0:02:55]}  Bg7 {[%clk 0:02:58]} 6. h3 {[%clk 0:02:55]}  e5 {[%clk 0:02:58]} 7. Qe2 {[%clk 0:02:52]}  Ne7 {[%clk 0:02:58]} 8. a4 {[%clk 0:02:46]}  a5 {[%clk 0:02:55]} 9. Nbd2 {[%clk 0:02:37]}  Qc7 {[%clk 0:02:50]} 10. O-O {[%clk 0:02:29]}  O-O {[%clk 0:02:50]} 11. Nc4 {[%clk 0:02:25]}  b6 {[%clk 0:02:49]} 12. Nh2 {[%clk 0:02:23]}  Be6 {[%clk 0:02:30]} 13. f4 {[%clk 0:02:11]}  Bxc4 {[%clk 0:02:28]} 14. dxc4 {[%clk 0:02:10]}  exf4 {[%clk 0:02:28]} 15. Bxf4 {[%clk 0:02:10]}  Be5 {[%clk 0:02:28]} 16. Bxe5 {[%clk 0:02:07]}  Qxe5 {[%clk 0:02:29]} 17. c3 {[%clk 0:01:56]}  f5 {[%clk 0:02:22]} 18. Rae1 {[%clk 0:01:37]}  Rae8 {[%clk 0:02:21]} 19. Nf3 {[%clk 0:01:29]}  Qxe4 {[%clk 0:02:17]} 20. Qd2 {[%clk 0:01:29]}  Qxc4 {[%clk 0:02:11]} 21. Ne5 {[%clk 0:01:18]}  Qd5 {[%clk 0:02:09]} 22. Qg5 {[%clk 0:01:07]}  Kg7 {[%clk 0:01:58]} 23. Ng4 {[%clk 0:00:39]}  Ng8 {[%clk 0:01:46]} 24. Ne3 {[%clk 0:00:24]}  Qd2 {[%clk 0:01:27]} 25. Nxf5+ {[%clk 0:00:22]}  Rxf5 {[%clk 0:01:16]} 26. Qxd2 {[%clk 0:00:22]}  Rd5 {[%clk 0:01:15]} 27. Qxd5 {[%clk 0:00:19]}  cxd5 {[%clk 0:01:15]} 28. Rxe8 {[%clk 0:00:18]}  Nf6 {[%clk 0:01:16]} 29. Rxf6 {[%clk 0:00:18]}  Kxf6 {[%clk 0:01:16]} 30. Rb8 {[%clk 0:00:18]}  Ke5 {[%clk 0:01:16]} 31. Rxb6 {[%clk 0:00:17]}  Ke4 {[%clk 0:01:16]} 32. Ra6 {[%clk 0:00:17]}  d4 {[%clk 0:01:16]} 33. cxd4 {[%clk 0:00:17]}  cxd4 {[%clk 0:01:17]} 34. Rxa5 {[%clk 0:00:17]}  d3 {[%clk 0:01:17]} 35. Ra8 {[%clk 0:00:17]}  Ke3 {[%clk 0:01:18]} 36. Rd8 {[%clk 0:00:17]}  d2 {[%clk 0:01:17]} 37. a5 {[%clk 0:00:17]}  Ke2 {[%clk 0:01:16]} 38. Rxd2+ {[%clk 0:00:16]}  Kxd2 {[%clk 0:01:16]} 39. a6 {[%clk 0:00:17]}  Kc2 {[%clk 0:01:17]} 40. b4 {[%clk 0:00:16]}  Kb2 {[%clk 0:01:17]} 41. b5 {[%clk 0:00:17]}  Kb1 {[%clk 0:01:18]} 42. b6 {[%clk 0:00:17]}  Kb2 {[%clk 0:01:19]} 43. b7 {[%clk 0:00:17]}  Kc1 {[%clk 0:01:19]} 44. a7 {[%clk 0:00:18]}  Kc2 {[%clk 0:01:20]} 45. Kf2 {[%clk 0:00:17]}  Kd2 {[%clk 0:01:21]} 46. Kf3 {[%clk 0:00:17]}  Kd1 {[%clk 0:01:22]} 47. b8=Q {[%clk 0:00:16]}  Kc1 {[%clk 0:01:23]} 48. a8=Q {[%clk 0:00:17]}  Kc2 {[%clk 0:01:24]} 49. Qc6+ {[%clk 0:00:17]}  Kd2 {[%clk 0:01:25]} 50. Qd8+ {[%clk 0:00:16]}  Ke1 {[%clk 0:01:25]} 51. Qc1# {[%clk 0:00:13]} 1-0